fUSD/lending_fUSD_20260221
["ID","MTS","AMOUNT","RATE_DAILY","PERIOD"]
[406303844,1771707043854,-4813.41890687,0.00016623,2]
[406303851,1771707045613,-13475.61311683,0.00016623,2]
[406303852,1771707045625,-3823.10491164,0.00016623,2]
[406303853,1771707045668,-376.09715932,0.00016623,2]
[406303854,1771707045776,-4038.39312561,0.00016623,2]
[406303858,1771707920886,153.16,0.0001267,2]
[406303859,1771707935220,-153.16,0.00013198,2]
[406303878,1771708231901,-153.16,0.00013726,2]
[406303879,1771708231917,-153.16,0.00014254,2]
[406303880,1771708231929,-153.16,0.00014782,2]
[406303881,1771708231942,-166.66,0.00014965,2]
[406303882,1771708231955,-166.66,0.0001528,2]
[406303883,1771708231966,-153.16,0.0001531,2]
[406303884,1771708231977,-166.66,0.00015595,2]
[406303885,1771708231989,-200.0,0.00015753,2]
[406303887,1771708231999,-153.16,0.00015838,2]
[406303889,1771708232010,-105.94321546,0.0001591,2]
[406303891,1771708232024,-60.71678454,0.0001591,2]
[406303892,1771708232036,-510.0,0.00016,2]
[406303893,1771708232047,-2000.0,0.000162,2]
[406303895,1771708232059,-166.66,0.00016225,2]
[406303897,1771708232070,-36.58982694,0.00016237,2]
[406303898,1771708232231,-137.15395723,0.00016237,2]
[406303899,1771708232242,-500.0,0.0001639,5]
[406303900,1771708232253,-200.0,0.00016463,2]
[406303901,1771708232265,-150.0,0.00016463,2]
[406303902,1771708232276,-200.0,0.00016463,2]
[406303903,1771708232286,-166.66,0.0001654,2]
[406303904,1771708232299,-1200.0,0.00016609,2]
[406303905,1771708232311,-350.0,0.0001661,2]
[406303906,1771708232323,-173.53675431,0.00016623,2]
[406303907,1771708232336,-160.0,0.00016623,3]
[406303908,1771708232347,-211.0,0.00016623,3]
[406303909,1771708232359,-150.0,0.00016623,3]
[406303910,1771708232372,-350.0,0.00016624,2]
[406303911,1771708232384,-300.0,0.00016627,2]
[406303912,1771708232396,-151.0,0.00016628,2]
[406303913,1771708232409,-151.0,0.00016628,2]
[406303914,1771708232421,-151.0,0.00016628,2]
[406303915,1771708232433,-151.0,0.00016628,2]
[406303916,1771708232442,-721.12765535,0.00016628,2]
[406303917,1771708232451,-151.0,0.00016628,2]
[406303918,1771708232461,-151.0,0.00016628,2]
[406303919,1771708232469,-151.0,0.00016628,2]
[406303920,1771708232478,-151.0,0.00016628,2]
[406303921,1771708232488,-151.0,0.00016628,2]
[406303922,1771708232497,-151.0,0.00016628,2]
[406303923,1771708232797,-151.0,0.00016628,2]
[406303924,1771708232822,-151.0,0.00016628,2]
[406303925,1771708232833,-151.0,0.00016628,2]
[406303926,1771708232842,-151.0,0.00016628,2]
[406303927,1771708232852,-151.0,0.00016628,2]
[406303928,1771708232862,-151.0,0.00016628,2]
[406303929,1771708232875,-151.0,0.00016628,2]
[406303930,1771708232884,-151.0,0.00016628,2]
[406303931,1771708232894,-151.0,0.00016628,2]
[406303932,1771708232903,-151.0,0.00016628,2]
[406303933,1771708232914,-151.0,0.00016628,2]
[406303934,1771708232923,-151.0,0.00016628,2]
[406303935,1771708232932,-151.0,0.00016628,2]
[406303936,1771708232942,-191.79984712,0.00016628,2]
[406303937,1771708232952,-151.0,0.00016628,2]
[406303938,1771708232961,-151.0,0.00016628,2]
[406303939,1771708232970,-151.0,0.00016628,2]
[406303940,1771708232982,-151.0,0.00016628,2]
[406303941,1771708232992,-693.3919763,0.00016628,2]
[406303942,1771708233001,-500.0,0.00016628,2]
[406303943,1771708233010,-500.0,0.00016628,2]
[406303944,1771708233020,-500.0,0.00016628,2]
[406303945,1771708233029,-500.0,0.00016628,2]
[406303946,1771708233039,-500.0,0.00016628,2]
[406303947,1771708233048,-500.0,0.00016628,2]
[406303948,1771708233057,-500.0,0.00016628,2]
[406303949,1771708233067,-500.0,0.00016628,2]
[406303950,1771708233076,-500.0,0.00016628,2]
[406303951,1771708233085,-500.0,0.00016628,2]
[406303952,1771708233094,-500.0,0.00016628,2]
[406303953,1771708233103,-21251.7782027,0.00016638,2]
[406303954,1771708233112,-190.5430067,0.00016666,2]
[406303955,1771708233122,-2363.93722521,0.00016666,2]
[406303956,1771708233131,-1952.7147779,0.00016666,2]
[406303957,1771708233140,-174.43515578,0.00016666,2]
[406303958,1771708233149,-1481.28359697,0.00016666,2]
[406303959,1771708233158,-294.04829156,0.00016666,2]
[406303960,1771708233170,-5532.1434212,0.00016666,2]
[406303961,1771708233179,-719.04747942,0.00016683,2]
[406303962,1771708233189,-1500.0,0.00016698,2]
[406303963,1771708233198,-500.0,0.00016719,2]
[406303964,1771708233207,-3240.0,0.00016737,2]
[406303965,1771708233216,-745.65223616,0.00016738,2]
[406303966,1771708233226,-233.13055887,0.00016755,2]
[406303967,1771708233235,-209.8,0.00016757,30]
[406303968,1771708233244,-1467858.50342149,0.00016758,2]
[406303969,1771708233455,-2738.37873719,0.00016758,2]
[406303970,1771708233466,-271.90586894,0.00016758,2]
[406303971,1771708233477,-565.88918827,0.00016758,2]
[406303972,1771708233599,-280.63250004,0.00016758,2]
[406303973,1771708233610,-344.81,0.00016758,2]
[406303974,1771708233621,-665.80732861,0.00016758,2]
[406303975,1771708233632,-3766.60401429,0.00016758,2]
[406303976,1771708233643,-824.83,0.00016758,2]
[406303977,1771708233654,-6478.73944726,0.00016758,2]
[406303978,1771708233712,-477.97880591,0.00016758,2]
[406303987,1771708237975,-357451.72822819,0.00016758,2]
[406303988,1771708237987,-713.98711326,0.00016758,2]
[406303989,1771708237999,-315.0,0.00016758,2]
[406303990,1771708238010,-213445.8,0.00016758,2]
[406303999,1771708240135,-586.14988568,0.00016757,2]
[406304000,1771708240144,-402.50114565,0.00016758,2]
[406304001,1771708240155,-341.67441066,0.00016758,2]
[406304002,1771708240517,-5334.33074672,0.00016758,2]
[406304031,1771708244694,-501.0,0.00016,2]
[406304032,1771708244705,-3.0,0.00016757,2]
[406304033,1771708244853,-497.0,0.00016757,2]
[406304034,1771708244863,-593.56755338,0.00016757,2]
[406304035,1771708244875,-2462.29718,0.00016758,2]
[406304036,1771708244888,-305.1723815,0.00016758,2]
[406304041,1771708245726,-1476.70594785,0.00016758,2]
[406304042,1771708245739,-8223.70647297,0.00016758,2]
[406304043,1771708245891,-5270.99999817,0.00016758,2]
[406304161,1771708870989,4337.55,0.00012983,2]
[406304170,1771709431908,-250.0,0.00015,2]
[406304171,1771709431918,-274.0,0.00015,2]
[406304172,1771709431928,-504.1163522,0.00015173,2]
[406304173,1771709431937,-200.0,0.00015647,2]
[406304174,1771709431948,-383.69874383,0.00015802,2]
[406304175,1771709431960,-116.30125617,0.00015802,2]
[406304176,1771709431969,-160.0,0.00015952,2]
[406304177,1771709431979,-507.0,0.00016,2]
[406304178,1771709431988,-173.74378417,0.00016356,2]
[406304179,1771709431997,-804.0,0.00016357,2]
[406304180,1771709432007,-182.0,0.00016357,2]
[406304181,1771709432016,-281.61682718,0.00016358,2]
[406304182,1771709432037,-372.98169339,0.00016358,2]
[406304183,1771709432052,-678.55671664,0.00016358,2]
[406304184,1771709432061,-196.03219438,0.00016358,2]
[406304185,1771709432070,-1046.96303767,0.00016358,2]
[406304186,1771709432096,-254.84681427,0.00016358,2]
[406304187,1771709432105,-268.15318573,0.00016358,2]
[406304206,1771709438047,-424.06072804,0.00016358,2]
[406304207,1771709438104,-692.12501114,0.00016358,2]
[406304307,1771709440461,-496.05,0.00016358,2]
[406304308,1771709440474,-1026.07,0.00016358,2]
[406304315,1771709443227,-504.0,0.00016358,2]
[406304322,1771709445959,-743.05352106,0.00016358,2]
[406304323,1771709446178,-456.60707168,0.00016358,2]
[406304324,1771709446188,-350.0,0.00016394,2]
[406304325,1771709446198,-8379.38347479,0.000164,2]
[406304326,1771709446207,-379.07180427,0.00016423,2]
[406304356,1771710033232,9021.87,0.00013172,7]
[406304365,1771710632183,-166.66,0.00014124,2]
[406304366,1771710632193,-166.66,0.00014422,2]
[406304367,1771710632202,-11.79572277,0.00014501,7]
[406304368,1771710632222,-248.03897223,0.00014501,7]
[406304369,1771710632231,-16.96102777,0.00014719,2]
[406304370,1771710632243,-149.69897223,0.00014719,2]
[406304372,1771710632253,-150.0,0.0001488,2]
[406304373,1771710632262,-200.0,0.0001494,2]
[406304374,1771710632272,-250.0,0.00015,2]
[406304375,1771710632281,-166.66,0.00015017,2]
[406304376,1771710632291,-1500.0,0.00015057,2]
[406304377,1771710632301,-441.64102777,0.00015173,2]
[406304379,1771710632313,-58.35897223,0.00015173,2]
[406304381,1771710632325,-500.0,0.00015173,2]
[406304383,1771710632335,-1200.0,0.00015188,2]
[406304384,1771710632345,-1000.0,0.0001519,2]
[406304385,1771710632355,-658.0,0.00015264,2]
[406304386,1771710632365,-3843.53,0.00015266,2]
[406304387,1771710632375,-166.66,0.00015314,2]
[406304388,1771710632385,-3240.0,0.0001545,2]
[406304389,1771710632394,-500.0,0.000156,5]
[406304390,1771710632404,-166.66,0.00015611,2]
[406304391,1771710632414,-605.82583204,0.000157,5]
[406304392,1771710632434,-494.17416796,0.000157,5]
[406304393,1771710632444,-643.72920629,0.00015721,2]
[406304394,1771710632454,-501.52699276,0.00015721,2]
[406304395,1771710632463,-802.27433927,0.000158,5]
[406304398,1771710638142,-897.72566073,0.000158,5]
[406304400,1771710638152,-2300.0,0.000159,5]
[406304401,1771710638162,-279.22,0.0001591,2]
[406304403,1771710638171,-508.0,0.00016,2]
[406304404,1771710638181,-700.0,0.00016009,2]
[406304405,1771710638191,-2770.72146739,0.00016058,2]
[406304406,1771710638200,-582.2468136,0.00016058,2]
[406304407,1771710638209,-3841.76626475,0.00016058,2]
[406304408,1771710638219,-350.0,0.00016061,2]
[406304409,1771710638228,-693.3919763,0.00016081,2]
[406304410,1771710638237,-10424.0965,0.00016089,2]
[406304411,1771710638247,-173.74378417,0.00016105,2]
[406304412,1771710638259,-487.27,0.00016116,2]
[406304413,1771710638268,-150.99,0.00016116,2]
[406304414,1771710638278,-719.04747942,0.00016136,2]
[406304415,1771710638287,-184389.46603689,0.00016157,2]
[406304416,1771710638305,-825.02024,0.00016157,2]
[406304450,1771710640306,-300.27680379,0.00016157,2]
[406304451,1771710640318,-873.57917235,0.00016157,2]
[406304452,1771710640419,-3313611.65774697,0.00016157,2]
[406304453,1771710640428,-13810.121,0.00016158,2]
[406304454,1771710640438,-2500.0,0.00016158,2]
[406304455,1771710640448,-408.3721,0.00016158,2]
[406304456,1771710640457,-5000.0,0.00016158,2]
[406304457,1771710640466,-428.6482,0.00016158,2]
[406304458,1771710640475,-500.0,0.00016189,2]
[406304459,1771710640484,-150.0,0.00016189,2]
[406304460,1771710640493,-150.0,0.00016189,2]
[406304461,1771710640502,-150.0,0.00016189,2]
[406304462,1771710640512,-181.12741055,0.00016189,2]
[406304463,1771710640521,-150.0,0.00016189,2]
[406304464,1771710640530,-250.0,0.00016189,2]
[406304465,1771710640539,-150.0,0.00016189,2]
[406304466,1771710640548,-150.0,0.00016189,2]
[406304467,1771710640558,-150.0,0.00016189,2]
[406304468,1771710640567,-150.0,0.00016189,2]
[406304469,1771710640576,-150.0,0.00016189,2]
[406304470,1771710640586,-150.0,0.00016189,2]
[406304471,1771710640596,-150.0,0.00016189,2]
[406304472,1771710640605,-745.65223616,0.00016191,2]
[406304473,1771710640614,-2324.0,0.00016199,2]
[406304474,1771710640623,-629.0,0.00016244,2]
[406304475,1771710640632,-150.0,0.00016244,2]
[406304476,1771710640641,-150.0,0.00016244,2]
[406304477,1771710640657,-150.0,0.00016244,2]
[406304478,1771710640669,-150.0,0.00016244,2]
[406304479,1771710640679,-187.7959083,0.00016244,2]
[406304480,1771710640689,-773.2413689,0.00016246,2]
[406304481,1771710640698,-721.12765535,0.00016248,2]
[406304482,1771710640707,-500.0,0.00016248,2]
[406304483,1771710640717,-500.0,0.00016248,2]
[406304484,1771710640726,-500.0,0.00016248,2]
[406304485,1771710640735,-500.0,0.00016248,2]
[406304486,1771710640745,-500.0,0.00016248,2]
[406304487,1771710640754,-500.0,0.00016248,2]
[406304488,1771710640764,-500.0,0.00016248,2]
[406304489,1771710640773,-500.0,0.00016248,2]
[406304490,1771710640782,-500.0,0.00016248,2]
[406304491,1771710640793,-500.0,0.00016248,2]
[406304492,1771710640804,-500.0,0.00016248,2]
[406304493,1771710640815,-151.0,0.00016248,2]
[406304494,1771710640824,-151.0,0.00016248,2]
[406304495,1771710640836,-151.0,0.00016248,2]
[406304496,1771710640846,-151.0,0.00016248,2]
[406304497,1771710640858,-151.0,0.00016248,2]
[406304498,1771710640868,-151.0,0.00016248,2]
[406304499,1771710640878,-151.0,0.00016248,2]
[406304501,1771710640887,-151.0,0.00016248,2]
[406304503,1771710640897,-151.0,0.00016248,2]
[406304504,1771710640906,-151.0,0.00016248,2]
[406304505,1771710640915,-151.0,0.00016248,2]
[406304506,1771710640925,-666.0,0.00016257,2]
[406304507,1771710640934,-1504.758,0.00016258,2]
[406304508,1771710640944,-152.665,0.00016258,2]
[406304509,1771710640953,-170.97074238,0.00016274,2]
[406304510,1771710640962,-175.0,0.00016299,2]
[406304511,1771710640972,-150.0,0.00016299,2]
[406304512,1771710640981,-150.0,0.00016299,2]
[406304513,1771710640991,-801.85129955,0.00016301,2]
[406304514,1771710641002,-2324.0,0.00016305,2]
[406304515,1771710641011,-150.0,0.00016353,2]
[406304516,1771710641021,-150.0,0.00016353,2]
[406304517,1771710641030,-2324.0,0.00016355,2]
[406304518,1771710641042,-831.51979763,0.00016356,2]
[406304519,1771710641052,-666.0,0.00016357,2]
[406304520,1771710641062,-1000.0,0.00016358,2]
[406304521,1771710641071,-150.0,0.00016408,2]
[406304522,1771710641081,-200.0,0.00016408,2]
[406304523,1771710641090,-350.0,0.00016409,2]
[406304524,1771710641099,-862.28603014,0.00016411,2]
[406304525,1771710641109,-2324.0,0.00016419,2]
[406304526,1771710641118,-155.90164677,0.00016423,2]
[406304527,1771710641127,-222.31,0.00016438,30]
[406304528,1771710641137,-151.0,0.00016438,2]
[406304529,1771710641146,-151.0,0.00016438,2]
[406304530,1771710641156,-151.0,0.00016438,2]
[406304531,1771710641167,-151.0,0.00016438,2]
[406304532,1771710641176,-296.0,0.00016438,2]
[406304533,1771710641186,-350.0,0.00016441,2]
[406304534,1771710641198,-801.94,0.00016456,2]
[406304535,1771710641208,-250.0,0.00016463,2]
[406304536,1771710641218,-894.19061326,0.00016466,2]
[406304537,1771710641228,-486.68,0.00016489,2]
[406304538,1771710641238,-927.27566595,0.00016521,2]
[406304539,1771710641249,-961.58486559,0.00016576,2]
[406304540,1771710641259,-487.0,0.00016587,2]
[406304541,1771710641271,-1879.32087,0.0001659,2]
[406304542,1771710641281,-1879.32087,0.0001659,2]
[406304543,1771710641290,-1879.32087,0.0001659,2]
[406304544,1771710641300,-1879.32087,0.0001659,2]
[406304545,1771710641310,-1879.32087,0.0001659,2]
[406304546,1771710641320,-1879.32087,0.0001659,2]
[406304547,1771710641330,-2000.0,0.0001659,2]
[406304548,1771710641340,-2000.0,0.0001659,2]
[406304549,1771710641349,-2000.0,0.0001659,2]
[406304550,1771710641359,-2000.0,0.0001659,2]
[406304551,1771710641369,-2000.0,0.0001659,2]
[406304552,1771710641378,-2000.0,0.0001659,2]
[406304553,1771710641388,-350.0,0.00016627,2]
[406304554,1771710641397,-997.16350561,0.00016631,2]
[406304555,1771710641407,-487.0,0.00016643,2]
[406304556,1771710641419,-2032.0,0.0001666,2]
[406304557,1771710641429,-487.0,0.00016669,2]
[406304558,1771710641438,-487.0,0.00016686,2]
[406304559,1771710641448,-1680.0,0.00016703,2]
[406304560,1771710641458,-487.0,0.0001671,2]
[406304561,1771710641467,-350.0,0.0001671,2]
[406304562,1771710641477,-167.05,0.00016712,2]
[406304563,1771710641486,-2324.0,0.00016726,2]
[406304564,1771710641496,-487.0,0.00016737,2]
[406304565,1771710641505,-911.3844237,0.00016742,2]
[406304566,1771710641515,-4556.4442669,0.00016742,2]
[406304567,1771710641524,-201.0,0.00016758,3]
[406304568,1771710641533,-160.0,0.00016758,3]
[406304569,1771710641542,-150.0,0.00016758,3]
[406304570,1771710641553,-487.0,0.00016801,2]
[406304571,1771710641563,-487.0,0.00016817,2]
[406304572,1771710641573,-157.04021352,0.00016858,2]
[406304573,1771710641583,-487.0,0.00016881,2]
[406304574,1771710641592,-487.0,0.00016905,2]
[406304575,1771710641602,-487.0,0.00016941,2]
[406304576,1771710641611,-487.0,0.00016972,2]
[406304577,1771710641621,-487.0,0.00016996,2]
[406304578,1771710641631,-30505.72127674,0.00017,2]
[406304579,1771710641640,-300.0,0.00017,2]
[406304580,1771710641651,-487.0,0.00017006,2]
[406304581,1771710641661,-487.0,0.00017032,2]
[406304582,1771710641671,-350.0,0.00017053,2]
[406304583,1771710641682,-487.0,0.00017053,2]
[406304584,1771710641692,-487.0,0.00017076,2]
[406304585,1771710641701,-1000.0,0.00017089,2]
[406304586,1771710641711,-487.0,0.00017092,2]
[406304587,1771710641722,-487.0,0.00017118,2]
[406304588,1771710641732,-487.0,0.00017138,2]
[406304589,1771710641743,-166.66,0.00017343,2]
[406304590,1771710641754,-1709.80454793,0.00017346,2]
[406304591,1771710641763,-156.268,0.00017398,2]
[406304592,1771710641773,-324.793369,0.00017401,7]
[406304593,1771710641782,-350.0,0.00017525,2]
[406304594,1771710641794,-350.0,0.00017581,2]
[406304595,1771710641807,-2770.7214673,0.00017715,2]
[406304596,1771710641816,-6562.6947821,0.00017718,2]
[406304597,1771710641826,-801.94,0.00017826,2]
[406304598,1771710642048,-155.0,0.00017833,2]
[406304599,1771710642057,-350.0,0.00017899,2]
[406304600,1771710642066,-166.66,0.00017916,2]
[406304601,1771710642075,-150.0,0.0001799,2]
[406304602,1771710642085,-34567.22380012,0.00018,2]
[406304603,1771710642101,-3591.13936281,0.00018,2]
[406304604,1771710642111,-237.97446818,0.00018128,2]
[406304605,1771710642119,-500.0,0.00018153,2]
[406304606,1771710642129,-350.0,0.00018185,2]
[406304607,1771710642139,-201.0,0.00018249,3]
[406304608,1771710642149,-155.0,0.00018268,2]
[406304609,1771710642159,-150.0,0.000183,7]
[406304610,1771710642170,-2351.0,0.0001837,2]
[406304611,1771710642181,-350.0,0.00018421,2]
[406304612,1771710642190,-166.66,0.00018488,2]
[406304613,1771710642200,-500.0,0.00018539,2]
[406304614,1771710642210,-500.0,0.0001854,2]
[406304615,1771710642219,-164.16786887,0.0001854,2]
[406304616,1771710642228,-162.05016959,0.0001854,2]
[406304617,1771710642240,-500.0,0.0001854,2]
[406304618,1771710642249,-297.46778061,0.0001854,2]
[406304619,1771710642259,-500.0,0.0001854,2]
[406304620,1771710642268,-500.0,0.0001854,2]
[406304621,1771710642278,-500.0,0.0001854,2]
[406304622,1771710642287,-241.21989957,0.0001854,2]
[406304623,1771710642296,-502.50033053,0.0001854,2]
[406304624,1771710642305,-474.05379574,0.0001854,2]
[406304625,1771710642314,-500.0,0.0001854,2]
[406304626,1771710642323,-500.0,0.0001854,2]
[406304627,1771710642332,-486.68,0.0001855,2]
[406304628,1771710642341,-155.0,0.00018703,2]
[406304629,1771710642350,-747.8093786,0.00018987,2]
[406304630,1771710642359,-1000.0,0.00018988,2]
[406304631,1771710642368,-1500.0,0.00019,2]
[406304632,1771710642378,-350.0,0.00019,2]
[406304633,1771710642387,-166.66,0.00019061,2]
[406304634,1771710642396,-1000.0,0.00019088,2]
[406304635,1771710642405,-1000.0,0.00019088,2]
[406304636,1771710642415,-1000.0,0.00019088,2]
[406304637,1771710642424,-1000.0,0.00019088,2]
[406304638,1771710642433,-1098.38505595,0.00019088,2]
[406304639,1771710642442,-1000.0,0.00019088,2]
[406304640,1771710642452,-1000.0,0.00019088,2]
[406304641,1771710642461,-155.0,0.00019138,2]
[406304642,1771710642470,-370.64791783,0.00019178,2]
[406304643,1771710642479,-2770.7214673,0.00019371,2]
[406304644,1771710642488,-166.66,0.00019633,2]
[406304645,1771710642497,-528.2508627,0.00019636,2]
[406304646,1771710642506,-1500.0,0.00019636,2]
[406304647,1771710642515,-887.35182664,0.00019636,2]
[406304648,1771710642524,-1500.0,0.00019636,2]
[406304649,1771710642533,-1500.0,0.00019636,2]
[406304650,1771710642543,-237.4,0.00019711,2]
[406304651,1771710642552,-201.0,0.0001974,3]
[406304652,1771710642561,-989.0,0.000199,2]
[406304653,1771710642569,-2800.0,0.000199,7]
[406304654,1771710642578,-309.0,0.000199,2]
[406304655,1771710642588,-431.0,0.000199,2]
[406304656,1771710642596,-303.0,0.000199,2]
[406304657,1771710642606,-886.3153012,0.0001995,15]
[406304658,1771710642615,-2805.23262734,0.0002,120]
[406304659,1771710642624,-1537.76157445,0.0002,2]
[406304660,1771710642633,-108.33467295,0.0002,2]
[406304661,1771710642806,-68.6874509,0.0002,2]
[406304662,1771710642815,-2464.68,0.0002,2]
[406304663,1771710642824,-1298.22971132,0.0002,2]
[406304664,1771710642833,-103.57687828,0.0002,2]
[406304665,1771710642845,-944.4260499,0.0002,2]
[406304666,1771710642854,-215.5739501,0.0002,2]
[406304667,1771710642870,-550.49704953,0.0002,2]
[406304672,1771710643313,-1794.4884,0.0002,2]
[406304676,1771710646032,-311.23627386,0.0002,2]
[406304678,1771710646042,-154.94875232,0.0002,2]
[406304679,1771710646051,-152.0,0.0002,2]
[406304680,1771710646060,-410.54530583,0.00020184,2]
[406304681,1771710646257,-370.45,0.00020184,2]
[406304703,1771711645650,9520.0,0.00019,120]
[406304704,1771711657399,3614.62,0.00012138,2]
[406304709,1771711831272,-250.0,0.00014723,2]
[406304711,1771711831282,-37.06431718,0.00014723,2]
[406304713,1771711831294,-1555.22270265,0.00014723,2]
[406304714,1771711831329,-1255.43695807,0.00014723,2]
[406304715,1771711831338,-511.48386035,0.00014723,2]
[406304716,1771711831389,-698.60613965,0.00014723,2]
[406304717,1771711831400,-85.93840597,0.00014899,2]
[406304718,1771711831412,-286.20897041,0.00014899,2]
[406304719,1771711831421,-408.97361053,0.00014917,2]
[406304720,1771711831459,-801.11638947,0.00014917,2]
[406304721,1771711831468,-200.0,0.0001505,2]
[406304722,1771711831478,-150.07321885,0.0001508,7]
[406304723,1771711831510,-57.79453715,0.0001508,7]
[406304724,1771711831520,-442.20546285,0.00015111,2]
[406304725,1771711831533,-767.88453715,0.00015111,2]
[406304726,1771711831543,-500.0,0.00015128,2]
[406304727,1771711831554,-577.17296285,0.00015138,2]
[406304728,1771711831565,-195.13703715,0.00015138,2]
[406304730,1771711831574,-1210.09,0.00015305,2]
[406304731,1771711831583,-1200.0,0.00015497,2]
[406304733,1771711831594,-1119.78482195,0.00015498,2]
[406304734,1771711831606,-90.30517805,0.00015498,2]
[406304735,1771711831618,-215.16877061,0.00015653,2]
[406304736,1771711831627,-1164.60275748,0.00015692,2]
[406304738,1771711837298,-45.48724252,0.00015692,2]
[406304739,1771711837309,-156.0,0.00015717,2]
[406304740,1771711837318,-244.782628,0.00015774,2]
[406304741,1771711837355,-2285.97089664,0.00015774,2]
[406304742,1771711837364,-3559.64472089,0.00015774,2]
[406304743,1771711837375,-1416.40035,0.00015774,2]
[406304755,1771711837685,-793.66649967,0.00015774,2]
[406304772,1771711844358,-2029.03851042,0.00015774,2]
[406304773,1771711844369,-867.87323462,0.00015774,2]
[406304774,1771711844380,-388.1645424,0.00015774,2]
[406304775,1771711844391,-3201.47188725,0.00015774,2]
[406304776,1771711844400,-348.0,0.00015836,2]
[406304777,1771711844410,-666.0,0.00015873,2]
[406304778,1771711844420,-428.6482,0.00015874,2]
[406304779,1771711844430,-5000.0,0.00015874,2]
[406304780,1771711844440,-3490536.73929337,0.00015874,2]
[406304781,1771711844453,-4035.17675864,0.00015874,2]
[406304782,1771711844465,-1323.95192,0.00015874,2]
[406304783,1771711844637,-665.46324136,0.00015874,2]
[406304796,1771711845260,-3438.66878663,0.00015874,2]
[406304797,1771711845270,-1309.2372,0.00015874,2]
[406304798,1771711845280,-1210.09,0.00015886,2]
[406304799,1771711845289,-151.0,0.00015964,2]
[406304800,1771711845299,-151.0,0.00015964,2]
[406304801,1771711845310,-151.0,0.00015964,2]
[406304802,1771711845320,-151.0,0.00015964,2]
[406304803,1771711845330,-151.0,0.00015964,2]
[406304804,1771711845339,-151.0,0.00015964,2]
[406304805,1771711845350,-151.0,0.00015964,2]
[406304806,1771711845359,-151.0,0.00015964,2]
[406304807,1771711845369,-151.0,0.00015964,2]
[406304808,1771711845379,-151.0,0.00015964,2]
[406304809,1771711845390,-151.0,0.00015964,2]
[406304810,1771711845399,-1334.38206163,0.00015973,2]
[406304811,1771711845536,-170.37593837,0.00015973,2]
[406304812,1771711845545,-152.665,0.00015973,2]
[406304813,1771711845556,-170.97074238,0.00015979,2]
[406304814,1771711845568,-517.0,0.00016,2]
[406304815,1771711845577,-173.74378417,0.00016036,2]
[406304816,1771711845588,-1210.09,0.0001608,2]
[406304817,1771711845598,-1000.0,0.00016158,2]
[406304818,1771711845607,-150.0,0.00016189,2]
[406304819,1771711845617,-150.0,0.00016189,2]
[406304820,1771711845626,-150.0,0.00016189,2]
[406304821,1771711845635,-150.0,0.00016189,2]
[406304822,1771711845645,-500.0,0.00016189,2]
[406304824,1771711845657,-150.0,0.00016189,2]
[406304826,1771711845668,-150.0,0.00016189,2]
[406304827,1771711845677,-150.0,0.00016189,2]
[406304829,1771711845687,-181.12741055,0.00016189,2]
[406304831,1771711845696,-153.2986871,0.00016189,2]
[406304833,1771711845706,-250.0,0.00016189,2]
[406304836,1771711845715,-150.0,0.00016189,2]
[406304838,1771711845724,-150.0,0.00016189,2]
[406304840,1771711845734,-150.0,0.00016189,2]
[406304842,1771711845745,-150.0,0.00016189,2]
[406304844,1771711845754,-250.0,0.00016195,2]
[406304845,1771711845763,-2620.72826975,0.00016195,2]